bitfinex/quotes_BTCUSD_20250328
["timestamp","ask_amount","ask_price","bid_price","bid_amount"]
[1743140197540,1.0,86149.0,86148.0,0.13247847]
[1743140197743,1.005,86149.0,86148.0,0.12087147]
[1743140198184,1.0,86149.0,86148.0,0.12087147]
[1743140198977,1.01820298,86149.0,86148.0,0.13247847]
[1743140199552,1.02320298,86149.0,86148.0,0.13247847]
[1743140199752,1.01820298,86149.0,86148.0,0.12847847]
[1743140199952,1.01820298,86149.0,86148.0,0.13347847]
[1743140200336,1.01820298,86149.0,86148.0,0.13147847]
[1743140202685,1.01820298,86149.0,86148.0,0.48831932]
[1743140202863,1.01820298,86149.0,86148.0,0.52460291]
[1743140203072,1.01820298,86149.0,86148.0,0.31110291]
[1743140203515,1.01820298,86149.0,86148.0,0.30610291]
[1743140204343,1.01820298,86149.0,86148.0,0.26981932]
[1743140204545,1.01820298,86149.0,86148.0,0.27181932]
[1743140204966,1.01820298,86149.0,86148.0,0.31406457]
[1743140205504,1.01820298,86149.0,86148.0,0.27781932]
[1743140207535,1.01820298,86149.0,86148.0,0.28666974]
[1743140207664,1.01820298,86149.0,86148.0,0.32087583]
[1743140207865,1.01820298,86149.0,86148.0,0.31487583]
[1743140208063,1.01820298,86149.0,86148.0,0.31787583]
[1743140208365,1.01820298,86149.0,86148.0,0.28766974]
[1743140209290,1.0,86149.0,86148.0,0.28766974]
[1743140212120,1.0,86149.0,86148.0,0.63340974]
[1743140212346,1.01820074,86149.0,86148.0,0.65654692]
[1743140212892,1.01820074,86149.0,86148.0,0.81986692]
[1743140213490,1.0,86149.0,86148.0,0.81986692]
[1743140216237,1.0,86149.0,86148.0,1.42254692]
[1743140218264,1.0182006,86149.0,86148.0,1.42254692]
[1743140218561,1.0182006,86149.0,86148.0,1.07680692]
[1743140218767,1.0182006,86149.0,86148.0,1.94846792]
[1743140220054,1.0182006,86149.0,86148.0,1.59460792]
[1743140221490,1.0182006,86149.0,86148.0,1.07680692]
[1743140221699,1.0182006,86149.0,86148.0,0.94800692]
[1743140224704,1.0,86149.0,86148.0,0.94800692]
[1743140229063,1.01820072,86149.0,86148.0,0.94800692]
[1743140229928,1.01820072,86149.0,86148.0,0.78468692]
[1743140230161,1.01820072,86149.0,86148.0,0.77014607]
[1743140230687,1.01820072,86149.0,86148.0,0.74700889]
[1743140233531,1.01820072,86149.0,86148.0,0.79780875]
[1743140234561,1.0,86149.0,86148.0,0.79780875]
[1743140237736,1.01820163,86149.0,86148.0,0.79780875]
[1743140246456,1.09450163,86149.0,86148.0,0.7832679]
[1743140246659,1.14000163,86149.0,86148.0,0.77441748]
[1743140250351,1.01820163,86149.0,86148.0,0.77441748]
[1743140251114,1.01820163,86149.0,86148.0,0.73815847]
[1743140252664,1.01820163,86149.0,86148.0,0.77445223]
[1743140253678,1.0,86149.0,86148.0,0.77445223]
[1743140254992,1.0,86149.0,86148.0,0.78899308]
[1743140256866,1.01820181,86149.0,86148.0,0.78899308]
[1743140258922,0.99417781,86149.0,86148.0,0.78899308]
[1743140264559,0.975976,86149.0,86148.0,0.78899308]
[1743140267562,0.99417749,86149.0,86148.0,0.78899308]
[1743140267928,0.99417749,86149.0,86148.0,0.76284523]
[1743140268283,1.07857749,86149.0,86148.0,0.72655147]
[1743140268596,1.09018449,86149.0,86148.0,0.72655147]
[1743140269061,1.07857749,86149.0,86148.0,0.72655147]
[1743140269265,1.09018449,86149.0,86148.0,0.72655147]
[1743140271880,0.62876347,86149.0,86148.0,0.72655147]
[1743140273191,0.62876347,86149.0,86148.0,0.72055147]
[1743140273603,0.67786347,86149.0,86148.0,0.72655147]
[1743140274372,0.67786347,86149.0,86148.0,0.72355147]
[1743140274744,0.65966198,86149.0,86148.0,0.72455147]
[1743140274953,0.65966198,86149.0,86148.0,0.71755147]
[1743140275369,0.65966198,86149.0,86148.0,0.72355147]
[1743140275719,0.65966198,86149.0,86148.0,0.71755147]
[1743140276122,0.65966198,86149.0,86148.0,0.72255147]
[1743140277406,0.66000038,86149.0,86148.0,0.72255147]
[1743140278148,0.67820446,86149.0,86148.0,0.72255147]
[1743140282187,0.97820446,86149.0,86148.0,0.72255147]
[1743140282391,1.07136163,86149.0,86148.0,0.60829383]
[1743140282607,1.07136163,86149.0,86148.0,0.00561383]
[1743140283220,1.07136163,86149.0,86148.0,0.00061383]
[1743140283462,1.05975463,86149.0,86114.0,0.232249]
[1743140283687,1.05975463,86149.0,86123.0,0.60284]
[1743140283688,0.378308,86133.0,86123.0,0.60284]
[1743140283871,0.378308,86133.0,86132.0,0.11442684]
[1743140283872,0.678308,86133.0,86132.0,0.11442684]
[1743140284073,0.678308,86133.0,86132.0,0.0001692]
[1743140285052,1.192858,86133.0,86132.0,0.0001692]
[1743140286773,1.192858,86133.0,86132.0,0.0051692]
[1743140287001,1.33074136,86133.0,86132.0,0.0051692]
[1743140288109,1.33074136,86133.0,86132.0,0.0001692]
[1743140288313,1.34995136,86133.0,86132.0,0.0001692]
[1743140288518,1.34895136,86133.0,86132.0,0.0021692]
[1743140288959,1.34995136,86133.0,86132.0,0.0001692]
[1743140290859,1.51235136,86133.0,86132.0,0.0001692]
[1743140293041,1.53735136,86133.0,86132.0,0.0001692]
[1743140293892,1.93684136,86133.0,86132.0,0.0001692]
[1743140295071,1.93584136,86133.0,86132.0,0.0001692]
[1743140295518,1.93884136,86133.0,86132.0,2e-07]
[1743140295725,1.99724751,86133.0,86132.0,2e-07]
[1743140295934,0.679674,86110.0,86109.0,0.0001692]
[1743140296103,0.9123238,86110.0,86109.0,0.0001692]
[1743140296874,0.94234427,86110.0,86109.0,0.0001692]
[1743140297259,0.9427897,86110.0,86109.0,0.0001692]
[1743140297843,1.49530622,86110.0,86109.0,0.0011692]
[1743140298766,1.49330622,86110.0,86109.0,0.0001692]
[1743140298988,1.3910499,86110.0,86109.0,0.0001692]
[1743140299189,1.3870499,86110.0,86109.0,0.0001692]
[1743140299390,1.3880499,86110.0,86109.0,0.0001692]
[1743140300486,1.41175703,86110.0,86109.0,0.0001692]
[1743140300687,1.45072355,86110.0,86109.0,0.0001692]
[1743140300987,1.56598119,86110.0,86109.0,0.0001692]
[1743140301569,1.56498119,86110.0,86109.0,0.0001692]
[1743140301781,1.56098119,86110.0,86109.0,0.0001692]
[1743140301981,1.56198119,86110.0,86109.0,0.0001692]
[1743140302186,1.56598119,86110.0,86109.0,0.0001692]
[1743140302983,1.53001467,86110.0,86109.0,0.0001692]
[1743140303761,1.56598119,86110.0,86109.0,0.0001692]
[1743140304690,1.54776734,86110.0,86109.0,0.0001692]
[1743140305172,1.51180082,86110.0,86109.0,0.0001692]
[1743140305674,1.39754318,86110.0,86109.0,0.0001692]
[1743140308411,1.4585097,86110.0,86109.0,0.0001692]
[1743140309313,1.47672535,86110.0,86109.0,0.0001692]
[1743140309540,1.47672535,86110.0,86109.0,2e-07]
[1743140309736,1.47672535,86110.0,86108.0,0.0001692]
[1743140309737,0.50247952,86109.0,86108.0,4e-07]
[1743140309952,0.61673716,86109.0,86108.0,4e-07]
[1743140310159,0.673799,86101.0,86095.0,0.00913806]
[1743140310398,0.70976552,86101.0,86095.0,0.00913806]
[1743140310607,0.82402316,86101.0,86095.0,0.00913806]
[1743140310916,0.016616,86085.0,86084.0,5e-07]
[1743140311146,0.03,86082.0,86081.0,0.0018314]
[1743140311356,0.57685702,86082.0,86081.0,0.0018314]
[1743140311556,0.72417616,86082.0,86081.0,0.0018314]
[1743140312459,0.75137838,86082.0,86081.0,0.0018314]
[1743140313019,1.28880197,86082.0,86081.0,0.0018314]
[1743140313625,1.84264736,86082.0,86070.0,0.0001692]
[1743140313826,0.672881,86072.0,86071.0,0.0038306]
[1743140314026,0.549012,86061.0,86060.0,0.25]
[1743140314234,0.711212,86061.0,86060.0,0.25]
[1743140314615,0.72943657,86061.0,86060.0,0.25]
[1743140315180,0.73343657,86061.0,86060.0,0.25]
[1743140315507,1.23877961,86061.0,86060.0,0.25]
[1743140315685,1.84936268,86061.0,86060.0,0.25]
[1743140315908,1.85036268,86061.0,86060.0,0.25]
[1743140316458,1.73610504,86061.0,86060.0,0.25]
[1743140317683,1.75942571,86061.0,86060.0,0.25]
[1743140319399,1.52092571,86061.0,86060.0,0.25]
[1743140319603,1.65976504,86061.0,86060.0,0.25]
[1743140320018,1.51582904,86061.0,86060.0,0.25]
[1743140320221,1.79224668,86061.0,86060.0,0.25]
[1743140321022,1.63008668,86061.0,86060.0,0.25]
[1743140321219,1.67798904,86061.0,86060.0,0.25]
[1743140321370,1.51582904,86061.0,86060.0,0.25]
[1743140321567,1.67798904,86061.0,86060.0,0.36425764]
[1743140322183,1.51482904,86061.0,86060.0,0.36425764]
[1743140322386,1.499486,86061.0,86060.0,0.36425764]
[1743140322638,1.61374364,86061.0,86060.0,0.36525764]
[1743140322950,1.499486,86061.0,86060.0,0.36525764]
[1743140323083,1.661606,86061.0,86060.0,0.36525764]
[1743140323288,1.243906,86061.0,86060.0,0.36525764]
[1743140323922,1.245906,86061.0,86060.0,0.36525764]
[1743140324126,1.19804364,86061.0,86060.0,0.36525764]
[1743140324548,1.083786,86061.0,86060.0,0.36525764]
[1743140325374,1.083786,86061.0,86060.0,0.36542694]
[1743140326103,1.065562,86061.0,86060.0,0.36542694]
[1743140329202,1.08378579,86061.0,86060.0,0.36542694]
[1743140332435,0.85139279,86061.0,86060.0,0.36542694]
[1743140332636,0.83977379,86061.0,86060.0,0.60944194]
[1743140332846,0.83977379,86061.0,86060.0,0.37704594]
[1743140333025,0.53977379,86061.0,86060.0,0.60944194]
[1743140333190,0.53977379,86061.0,86060.0,0.37704594]
[1743140333389,0.53977379,86061.0,86060.0,0.36542694]
[1743140333585,0.53977379,86061.0,86060.0,0.60944194]
[1743140333827,0.53977379,86061.0,86060.0,0.36542694]
[1743140334965,0.52155,86061.0,86060.0,0.36542694]
[1743140336605,0.52155,86061.0,86060.0,0.37704594]
[1743140338634,0.51655,86061.0,86060.0,0.37704594]
[1743140338858,0.51655,86061.0,86060.0,0.45994594]
[1743140339339,0.53477322,86061.0,86060.0,0.45994594]
[1743140341072,0.46477322,86061.0,86060.0,0.44832694]
[1743140341277,0.46477322,86061.0,86060.0,0.36542694]
[1743140341485,0.46977322,86061.0,86060.0,0.36542694]
[1743140341630,0.49699771,86061.0,86060.0,0.36542694]
[1743140341840,0.48139222,86061.0,86060.0,0.36542694]
[1743140342881,0.46977322,86061.0,86060.0,0.36542694]
[1743140343789,0.71378522,86061.0,86060.0,0.36542694]
[1743140348723,0.70216622,86061.0,86060.0,0.36542694]
[1743140348927,0.87558522,86061.0,86060.0,0.2511693]
[1743140349314,0.87592382,86061.0,86060.0,0.2511693]
[1743140349538,0.87592382,86061.0,86060.0,0.36542694]
[1743140352596,0.47011182,86061.0,86060.0,0.36542694]
[1743140352796,0.46511182,86061.0,86060.0,0.45354594]
[1743140353987,0.4468886,86061.0,86060.0,0.45354594]
[1743140355077,0.4468886,86061.0,86060.0,1.05698594]
[1743140355524,0.4468886,86061.0,86060.0,1.10228594]
[1743140356332,0.4468886,86061.0,86060.0,1.11409998]
[1743140356914,0.4468886,86061.0,86060.0,1.11309998]
[1743140357160,0.4448886,86061.0,86060.0,1.11609998]
[1743140357302,0.46311041,86061.0,86060.0,1.11609998]
[1743140357505,0.46411041,86061.0,86060.0,1.11609998]
[1743140357795,0.46311041,86061.0,86060.0,1.11309998]
[1743140358013,0.46311041,86061.0,86060.0,1.13064083]
[1743140358397,0.46311041,86061.0,86060.0,1.11609998]
[1743140358604,0.46311041,86061.0,86060.0,1.10428594]
[1743140359965,0.46311041,86061.0,86060.0,1.10128594]
[1743140360525,0.46411041,86061.0,86060.0,1.10628594]
[1743140360880,0.46411041,86061.0,86060.0,1.13225164]
[1743140361301,0.46411041,86061.0,86060.0,0.99591079]
[1743140364635,0.4458886,86061.0,86060.0,0.99591079]
[1743140364810,0.4458886,86061.0,86060.0,0.98448594]
[1743140367718,0.46411015,86061.0,86060.0,0.98448594]
[1743140374648,0.4458886,86061.0,86060.0,0.98448594]
[1743140377843,0.4458886,86061.0,86060.0,0.99902679]
[1743140378091,0.4458886,86061.0,86060.0,1.07802679]
[1743140378288,0.4458886,86061.0,86060.0,1.12462679]
[1743140378536,0.4458886,86061.0,86060.0,1.16088316]
[1743140378949,0.4458886,86061.0,86060.0,1.56713381]
[1743140379151,0.4448886,86061.0,86060.0,1.16459181]
[1743140379385,0.46310804,86061.0,86060.0,1.12833544]
[1743140379578,0.46310804,86061.0,86060.0,1.13433544]
[1743140380056,0.46310804,86061.0,86060.0,0.98548594]
[1743140380236,0.46310804,86061.0,86060.0,1.00002679]
[1743140381031,0.46310804,86061.0,86060.0,1.17289368]
[1743140381238,0.46310804,86061.0,86060.0,4.00331068]
[1743140381572,0.46310804,86061.0,86060.0,4.30331068]
[1743140382178,0.46310804,86061.0,86060.0,4.29731068]
[1743140382590,0.46310804,86061.0,86060.0,4.30331068]
[1743140383146,0.46410804,86061.0,86060.0,4.30631068]
[1743140383653,0.46410804,86061.0,86060.0,3.21503468]
[1743140384703,0.4458886,86061.0,86060.0,1.90003568]
[1743140390621,6e-07,86061.0,86060.0,1.86377831]
[1743140390764,6e-07,86061.0,86060.0,2.01889631]
[1743140390965,6e-07,86061.0,86060.0,2.08014183]
[1743140392143,2e-07,86070.0,86069.0,0.086618]
[1743140392347,2e-07,86070.0,86069.0,0.82933311]
[1743140393143,1.0000002,86070.0,86069.0,0.85433301]
[1743140393368,1.0000002,86070.0,86069.0,0.86033301]
[1743140393550,1.0000002,86070.0,86069.0,0.85433301]
[1743140393982,1.0000002,86070.0,86069.0,0.97683301]
[1743140394203,1.0000002,86070.0,86069.0,0.85433301]
[1743140394402,2e-07,86070.0,86069.0,0.85433301]
[1743140394972,2e-07,86070.0,86069.0,0.86033301]
[1743140395473,2e-07,86070.0,86069.0,1.02145301]
[1743140395902,2e-07,86070.0,86069.0,0.99120739]
[1743140396108,1.0000002,86070.0,86069.0,0.99120739]
[1743140396657,1.0000002,86070.0,86069.0,1.40910739]
[1743140396829,1.0000002,86070.0,86069.0,2.27235749]
[1743140396975,1.0000002,86070.0,86069.0,1.78481164]
[1743140397623,1.0000002,86070.0,86069.0,1.72435249]
[1743140397822,1.0000002,86070.0,86069.0,1.67305249]
[1743140398381,1.0000002,86070.0,86069.0,1.45381187]
[1743140398625,1.0000002,86070.0,86069.0,1.26063887]
[1743140398786,1.0000002,86070.0,86069.0,1.27517972]
[1743140399234,1.0000002,86070.0,86069.0,1.28717972]
[1743140399862,1.0000002,86070.0,86069.0,1.27517972]
[1743140400062,1.0000002,86070.0,86069.0,1.12009972]
[1743140400289,1.0000002,86070.0,86069.0,1.28713972]
[1743140400441,1.0000002,86070.0,86069.0,1.11155887]
[1743140400922,1.0000002,86070.0,86069.0,1.12609972]
[1743140401118,1.0800002,86070.0,86069.0,0.14966987]
[1743140401337,1.3239872,86070.0,86069.0,0.75278987]
[1743140401741,1.3123692,86070.0,86069.0,0.75278987]
[1743140402263,1.3123692,86070.0,86069.0,0.74678987]
[1743140402499,1.3123692,86070.0,86069.0,0.75278987]
[1743140402645,1.0800002,86070.0,86069.0,0.74678987]
[1743140403051,1.0800002,86070.0,86069.0,0.74078987]
[1743140403250,1.0000002,86070.0,86069.0,0.76694872]
[1743140403510,1.0000002,86070.0,86069.0,0.77294872]
[1743140403709,1.0000002,86070.0,86069.0,0.77494872]
[1743140403885,1.0000002,86070.0,86069.0,0.76894872]
[1743140404268,1.0000002,86070.0,86069.0,0.77494872]
[1743140404667,1.0000002,86070.0,86069.0,0.76894872]
[1743140405121,1.0000002,86070.0,86069.0,0.76694872]
[1743140405572,1.0000002,86070.0,86069.0,0.77094872]
[1743140406134,1.0000002,86070.0,86069.0,0.77694872]
[1743140408045,1.0000002,86070.0,86069.0,0.77711802]
[1743140409349,1.01821816,86070.0,86069.0,0.77711802]
[1743140409957,1.01821816,86070.0,86069.0,0.76257717]
[1743140412588,1.0000002,86070.0,86069.0,0.76257717]
[1743140416928,1.39439433,86070.0,86069.0,0.12442694]
[1743140417133,1.39439433,86070.0,86069.0,0.72762694]
[1743140417996,1.41261406,86070.0,86069.0,0.72762694]
[1743140418201,1.41261406,86070.0,86069.0,0.72162694]
[1743140418434,1.39450693,86070.0,86069.0,0.72162694]
[1743140418632,1.39450693,86070.0,86069.0,0.71762694]
[1743140419276,1.39450693,86070.0,86069.0,0.71962694]
[1743140419471,1.39450693,86070.0,86069.0,0.6053693]
[1743140419676,1.50876457,86070.0,86069.0,0.6053693]
[1743140419881,1.80876457,86070.0,86069.0,0.6113693]
[1743140420734,1.69450693,86070.0,86069.0,0.71962694]
[1743140420938,1.69450693,86070.0,86069.0,0.72462694]
[1743140421842,1.69450693,86070.0,86069.0,0.72262694]
[1743140422041,1.39450693,86070.0,86069.0,0.72362694]
[1743140424726,1.3762872,86070.0,86069.0,0.72362694]
[1743140427762,1.39450844,86070.0,86069.0,0.72362694]
[1743140434729,1.3762872,86070.0,86069.0,0.72362694]
[1743140437692,1.39450866,86070.0,86069.0,0.72362694]
[1743140440319,1.15052166,86070.0,86069.0,0.72362694]
[1743140441517,1.16213966,86070.0,86069.0,0.72362694]
[1743140442461,1.15052166,86070.0,86069.0,0.72362694]
[1743140442668,1.02322166,86070.0,86069.0,0.72362694]
[1743140443475,1.01822166,86070.0,86069.0,0.74689895]
[1743140443794,1.0000002,86070.0,86069.0,0.74689895]
[1743140446960,1.0000002,86070.0,86069.0,0.7614398]
[1743140447161,1.01821874,86070.0,86069.0,0.7614398]
[1743140451962,1.01821874,86070.0,86069.0,0.8886398]
[1743140452185,1.01821874,86070.0,86069.0,1.8891708]
[1743140452412,0.0783,86111.0,86081.0,0.243955]
[1743140452610,0.005,86104.0,86081.0,0.61345349]
[1743140452819,0.0182167,86085.0,86081.0,0.53315349]
[1743140453654,0.0182167,86085.0,86081.0,0.37275349]
[1743140454462,0.0182167,86085.0,86081.0,0.37775349]
[1743140454628,0.005,86091.0,86081.0,0.37775349]
[1743140455033,0.005,86091.0,86081.0,0.38375349]
[1743140455485,1.00078375,86082.0,86081.0,0.38375349]
[1743140458989,1.01899947,86082.0,86081.0,0.46705349]
[1743140459185,1.01899947,86082.0,86081.0,1.21604891]
[1743140459523,1.01899947,86082.0,86081.0,1.48290791]
[1743140459921,1.01899947,86082.0,86081.0,1.00504991]
[1743140460140,1.01899947,86082.0,86081.0,0.79549491]
[1743140460540,1.01899947,86082.0,86081.0,0.49079991]
[1743140461688,1.01899947,86082.0,86081.0,0.47979991]
[1743140461887,1.01899947,86082.0,86081.0,0.48579991]
[1743140462269,1.01899947,86082.0,86081.0,0.49179991]
[1743140462787,1.01899947,86082.0,86081.0,0.40849991]
[1743140463358,1.01899947,86082.0,86081.0,0.39395906]
[1743140464170,1.01899947,86082.0,86081.0,0.12025764]
[1743140464370,1.02399947,86082.0,86081.0,0.12025764]
[1743140464594,1.00078375,86082.0,86081.0,0.13187364]
[1743140465385,1.00078375,86082.0,86081.0,0.12587364]
[1743140465581,1.00078375,86082.0,86081.0,0.13687364]
[1743140465810,1.00078375,86082.0,86081.0,0.13187364]
[1743140466242,1.00078375,86082.0,86081.0,0.12987364]
[1743140466619,1.00078375,86082.0,86081.0,0.13587364]
[1743140469155,1.01900021,86082.0,86081.0,0.73903364]
[1743140469362,1.02400021,86082.0,86081.0,0.72741764]
[1743140470556,1.02400021,86082.0,86081.0,0.73503364]
[1743140470921,1.02400021,86082.0,86081.0,0.73203364]
[1743140471117,1.02400021,86082.0,86081.0,0.73803364]
[1743140471556,1.02400021,86082.0,86081.0,0.72641764]
[1743140472170,1.02400021,86082.0,86081.0,0.95875664]
[1743140472368,1.02400021,86082.0,86081.0,0.97037264]
[1743140472983,1.02400021,86082.0,86081.0,0.72641764]
[1743140474634,1.00578375,86082.0,86081.0,0.72641764]
[1743140477665,1.02400112,86082.0,86081.0,0.72641764]
[1743140479594,1.02400112,86082.0,86081.0,0.73803364]
[1743140480371,1.02400112,86082.0,86081.0,0.72641764]
[1743140482207,1.02400112,86082.0,86081.0,0.97037264]
[1743140482427,1.01900112,86082.0,86081.0,0.97037264]
[1743140482592,1.01900112,86082.0,86081.0,0.98491349]
[1743140482794,1.01900112,86082.0,86081.0,1.03451349]
[1743140483611,1.01900112,86082.0,86081.0,1.02851349]
[1743140483941,1.01900112,86082.0,86081.0,1.14200482]
[1743140484145,1.01900112,86082.0,86081.0,1.30500982]
[1743140488470,1.00078375,86082.0,86081.0,1.60500982]
[1743140489415,1.00078375,86082.0,86081.0,1.60100982]
[1743140489622,1.00078375,86082.0,86081.0,1.76684982]
[1743140490600,1.00078375,86082.0,86081.0,1.76084982]
[1743140490831,1.00078375,86082.0,86081.0,1.60100982]
[1743140491034,1.00078375,86082.0,86081.0,1.46950397]
[1743140491599,1.00078375,86082.0,86081.0,1.48404482]
[1743140495562,1.00078375,86082.0,86081.0,1.32420482]
[1743140495764,1.00078375,86082.0,86081.0,1.48396482]
[1743140498824,1.00078375,86082.0,86081.0,1.14763349]
[1743140499202,1.01899823,86082.0,86081.0,1.14763349]
[1743140501219,1.01899823,86082.0,86081.0,2.56653749]
[1743140501430,1.01899823,86082.0,86081.0,2.56858437]
[1743140501636,1.01899823,86082.0,86081.0,2.43575237]
[1743140501837,1.01899823,86082.0,86081.0,2.05752437]
[1743140504228,1.01899823,86082.0,86081.0,1.97702437]
[1743140504483,1.00078375,86082.0,86081.0,1.97702437]
[1743140504599,0.98825461,86082.0,86081.0,1.97702437]
[1743140505302,0.95334513,86082.0,86081.0,2.00202427]
[1743140505893,0.95334513,86082.0,86081.0,1.99602427]
[1743140506055,0.0009909,86114.0,86110.0,0.23226]
[1743140506387,0.0009909,86114.0,86113.0,0.11425764]
[1743140506639,0.005,86116.0,86113.0,0.71733764]
[1743140506819,0.005,86116.0,86115.0,0.11425764]
[1743140507251,0.005,86116.0,86115.0,0.11430217]
[1743140507657,0.02321102,86116.0,86115.0,0.11430217]
[1743140508021,1.02321102,86116.0,86115.0,0.11430217]
[1743140509242,1.02321102,86116.0,86115.0,0.11830217]
[1743140509795,1.02321102,86116.0,86115.0,0.11430217]
[1743140510360,0.011616,86087.0,86081.0,0.60304]
[1743140510562,0.243947,86084.0,86083.0,0.11425764]
[1743140510761,0.243939,86087.0,86083.0,0.11425764]
[1743140511006,0.243944,86086.0,86083.0,0.11425764]
[1743140511185,0.01821554,86084.0,86083.0,0.11425764]
[1743140513005,0.01821554,86084.0,86083.0,0.12025764]
[1743140513378,1.01821554,86084.0,86083.0,0.12625764]
[1743140513709,1.01855394,86084.0,86083.0,0.12625764]
[1743140513911,1.26250094,86084.0,86083.0,0.12625764]
[1743140514427,1.01855394,86084.0,86083.0,0.12625764]
[1743140514846,1.0003384,86084.0,86083.0,0.12625764]
[1743140516349,1.0003384,86084.0,86083.0,0.11425764]
[1743140516495,1.0003384,86084.0,86083.0,0.12025764]
[1743140516713,0.99929329,86084.0,86083.0,0.12625764]
[1743140519569,1.01750983,86084.0,86083.0,0.12625764]
[1743140520654,1.01750983,86084.0,86083.0,0.13787364]
[1743140520851,1.01750983,86084.0,86083.0,0.15241449]
[1743140521417,1.01750983,86084.0,86083.0,0.14079849]
[1743140521617,1.01750983,86084.0,86083.0,0.15241449]
[1743140522328,1.01750983,86084.0,86083.0,0.14079849]
[1743140522530,1.01750983,86084.0,86083.0,0.15241449]
[1743140522738,1.01750983,86084.0,86083.0,0.13787364]
[1743140523469,1.01750983,86084.0,86083.0,0.37020664]
[1743140524647,1.00429329,86084.0,86083.0,0.12625764]
[1743140525491,1.00429329,86084.0,86083.0,0.12025764]
[1743140525847,1.24824029,86084.0,86083.0,0.12625764]
[1743140526211,1.24824029,86084.0,86083.0,0.12025764]
[1743140526409,1.24824029,86084.0,86083.0,0.11442684]
[1743140526643,1.37484029,86084.0,86083.0,0.12042684]
[1743140526965,1.37484029,86084.0,86083.0,0.12442684]
[1743140527299,1.37484029,86084.0,86083.0,0.12042684]
[1743140527500,1.37484029,86084.0,86083.0,0.12342684]
[1743140527819,1.37484029,86084.0,86083.0,0.12042684]
[1743140528117,1.3930568,86084.0,86083.0,0.12042684]
[1743140528503,1.3930568,86084.0,86083.0,0.11442684]
[1743140529028,1.3930568,86084.0,86083.0,0.12042684]
[1743140529361,1.3930568,86084.0,86083.0,0.12142684]
[1743140530231,1.3930568,86084.0,86083.0,0.72458684]
[1743140533575,1.4030568,86084.0,86083.0,0.72458684]
[1743140534493,1.38484029,86084.0,86083.0,0.72458684]
[1743140537723,1.4030577,86084.0,86083.0,0.72458684]
[1743140541547,1.4030577,86084.0,86070.0,0.0001692]
[1743140541548,0.543984,86071.0,86070.0,0.0001692]
[1743140541705,0.831484,86071.0,86070.0,0.0001692]
[1743140542350,0.84970609,86071.0,86070.0,0.0001692]
[1743140542551,0.96396373,86071.0,86070.0,0.0001692]
[1743140542958,1.96291373,86071.0,86070.0,0.0001692]
[1743140543203,1.97177705,86071.0,86070.0,0.0001692]
[1743140544069,1.95355496,86071.0,86070.0,0.0001692]
[1743140545648,1.95355496,86071.0,86070.0,0.0031692]
[1743140546072,1.95355496,86071.0,86070.0,0.0001692]
[1743140546346,1.830394,86071.0,86070.0,0.0021692]
[1743140546481,1.831394,86071.0,86070.0,0.0021692]
[1743140547139,1.84961625,86071.0,86070.0,0.0021692]
[1743140548259,1.8723206,86071.0,86070.0,0.0021692]
[1743140548407,1.98657824,86071.0,86070.0,0.0021692]
[1743140550904,1.8723206,86071.0,86070.0,0.0021692]
[1743140551798,1.8722806,86071.0,86070.0,0.0021692]
[1743140553201,1.7131606,86071.0,86070.0,0.0021692]
[1743140553400,1.8722406,86071.0,86070.0,0.0021692]
[1743140554604,1.85401835,86071.0,86070.0,0.0021692]
[1743140554785,1.90425218,86071.0,86070.0,0.0021692]
[1743140554987,1.85401835,86071.0,86070.0,0.0021692]
[1743140558150,1.8722406,86071.0,86070.0,0.0021692]
[1743140562224,1.8772406,86071.0,86070.0,0.0021692]
[1743140562420,2.2949406,86071.0,86070.0,0.0021692]
[1743140563254,2.2939406,86071.0,86070.0,0.0021692]
[1743140563449,2.41019824,86071.0,86070.0,0.0001692]
[1743140563909,2.40819824,86071.0,86070.0,0.0001692]
[1743140564300,2.41019824,86071.0,86070.0,0.0001692]
[1743140564830,2.41119824,86071.0,86070.0,0.0001692]
[1743140565162,2.2968206,86071.0,86070.0,0.0001692]
[1743140565387,2.2958206,86071.0,86070.0,0.0001692]
[1743140565589,2.27759835,86071.0,86070.0,0.0001692]
[1743140565753,2.27859835,86071.0,86070.0,0.0001692]
[1743140566390,2.27855835,86071.0,86070.0,0.0001692]
[1743140566632,2.39281599,86071.0,86070.0,0.0001692]
[1743140567107,2.23389599,86071.0,86070.0,0.0001692]
[1743140567339,2.39281599,86071.0,86070.0,0.0001692]
[1743140568271,2.23389599,86071.0,86070.0,0.0001692]
[1743140568521,2.39281599,86071.0,86070.0,0.0001692]
[1743140568762,2.41103854,86071.0,86070.0,0.0001692]
[1743140574702,2.39281599,86071.0,86070.0,0.0001692]
[1743140574907,2.39273599,86071.0,86070.0,0.0001692]
[1743140576719,2.39273599,86071.0,86070.0,2e-07]
[1743140577761,2.41095942,86071.0,86070.0,2e-07]
[1743140578165,2.43265999,86071.0,86070.0,2e-07]
[1743140579225,0.321618,86070.0,86069.0,5e-07]
[1743140579436,0.554017,86059.0,86058.0,6e-07]
[1743140580301,0.572242,86059.0,86058.0,6e-07]
[1743140580894,0.647542,86059.0,86058.0,6e-07]
[1743140581035,1.649492,86059.0,86058.0,6e-07]
[1743140581273,2.22774964,86059.0,86058.0,6e-07]
[1743140582925,2.29863202,86059.0,86058.0,6e-07]
[1743140583126,2.29863202,86059.0,86051.0,0.002]
[1743140583332,0.447321,86051.0,86050.0,6e-07]
[1743140583579,1.08066267,86051.0,86050.0,6e-07]
[1743140583780,1.19492031,86051.0,86050.0,6e-07]
[1743140583990,1.13803864,86051.0,86050.0,6e-07]
[1743140584385,1.19492031,86051.0,86050.0,6e-07]
[1743140584556,1.19504431,86051.0,86050.0,6e-07]
[1743140584775,2.19699431,86051.0,86050.0,6e-07]
[1743140585413,2.20564673,86051.0,86050.0,6e-07]
[1743140585625,2.21700449,86051.0,86050.0,6e-07]
[1743140585823,2.0538688,86051.0,86050.0,6e-07]
[1743140586355,1.8951088,86051.0,86050.0,6e-07]
[1743140586551,2.0538288,86051.0,86050.0,6e-07]
[1743140587301,2.0538288,86051.0,86050.0,0.0001698]
[1743140587449,2.16808644,86051.0,86050.0,0.0001698]
[1743140588465,1.9877104,86051.0,86050.0,0.0001698]
[1743140588628,2.1464304,86051.0,86050.0,0.0001698]
[1743140588849,2.1785223,86051.0,86050.0,0.0001698]
[1743140589054,0.549069,86041.0,86018.0,0.68312]
[1743140589257,0.6532884,86041.0,86018.0,0.68312]
[1743140590524,0.72776682,86041.0,86018.0,0.68312]
[1743140590738,0.54908,86037.0,86036.0,1e-06]
[1743140590939,0.62918,86037.0,86036.0,1e-06]
[1743140591178,0.74343764,86037.0,86036.0,1e-06]
[1743140591523,0.74343764,86037.0,86001.0,0.0025]
[1743140591524,0.448224,86022.0,86021.0,3e-07]
[1743140591747,1.024644,86022.0,86021.0,3e-07]
[1743140591859,0.860924,86022.0,86021.0,3e-07]
[1743140592060,0.860924,86022.0,85993.0,0.6036]
[1743140592061,0.244182,86001.0,86000.0,0.0969803]
[1743140592264,0.3162727,86001.0,86000.0,0.21123794]